{"text_format":"3","workbook":"xlsx","n_sheets":3,"sheets":["Sheet1","Sheet2","Sheet3"],"read":"whole","date_system":"1900"}

{"sheet":"Sheet1","index":0,"n_rows":74,"n_cols":12,"rows_kept":74,"merged":[[0,0,0,11],[23,6,24,6],[23,7,24,7],[23,8,24,8],[59,7,62,7],[59,8,62,8],[59,9,62,9],[59,10,62,10],[59,11,62,11],[63,6,64,6],[63,7,64,7],[63,8,64,8],[63,9,64,9],[63,10,64,10],[63,11,64,11]]}
["呼和浩特市妇幼保健院超长期特别国债资金支持设备更新项目明细表"]
["序号","待更新设备名称","型号","数量","原始单价（元）","存放地点","预更新设备名称","数量","核心参数（最多10条）","预算单价（元）","预算总价（元）","预存放地点"]
[1,"呼吸机","Trilogy 202",1,220000,"15楼内科病房Z14026","呼吸机",1,"最大漏气补偿量≥150L/min、电池续航≥8小时、最大流量≥300L/min、持续气道正压2-25cmH20、吸气压力2-40cmH20、呼气压力2-25cmH20",150000,{"$f":"H3*J3","v":150000},"15楼内科病房Z14026"]
[2,"除颤仪","DEFIGARD 500",1,"调拨","15楼内科病房Z14026","呼吸机",1,"1.具备手动除颤、心电监护、自动体外除颤（AED）功能。除颤具备自动阻抗补偿功能；可选配升级体外起搏功能，起搏分为固定和按需两种模式。具备降速起搏功能。可选配专用体内除颤附件包。\n2.同步除颤和手动除颤中，能量分25档以上，可通过体外电极板进行能量选择最小为1J，最大为360J\n3.支持AED除颤功能，电击能量：100～360J。\n4.除颤充电迅速，充电至200J<3s，充电至360J<7s。\n5.具有旋钮式能量选择，可快速选择12档位能量，可调节4种模式\n6.病人阻抗范围：体外除颤：20~300Ω；体内除颤：15-300Ω。\n7.标配1块电池可支持360J除颤210次以上，电池体上带有五段LED 电池电量指示装置，用于快速评估电池电量。\n8.具备生理报警和技术报警功能，并且具有双报警灯，分别显示生理报警和技术报警。\n9.体外除颤监护仪可升级配置50mm记录仪，实时记录时间有3秒、5秒、8秒、16秒、32秒、连续可供选择。",60000,{"$f":"H4*J4","v":60000},"15楼内科病房Z14026"]
[3,"时间分辨免疫\n荧光分析仪","PE-1420",1,430000,"精准医学实\n验室筛查室","全自动荧光免疫\n分析系统",1,"1，设备取得中国NMPA医疗器械注册证\n2，有配套试剂定量检测与新生儿疾病筛查相关指标，至少包括Phe，TSH，17α-OHP，G6PD检测指标，且试剂在中国卫生部临检中心室间质量评价中设有单独分组\n3，具有加热孵育的功能，符合实验要求，仪器内部温度的恒定，试剂储存区具有冷藏功能\n4，仪器为自动操作，样品检测项目可自由调节检测顺序，连续操作不间断，每批在机微孔板数量至少24块\n5，具有自动血片移除功能\n6，具有血片探测功能，探测出板孔中出现血片丢失或血片洗脱不全的情况\n7，具有微孔板或试剂条形码识别器，可自动识别实验项目\n8，具有自动吸液和冲洗，自动排除废液功能\n9，试剂移液器精密度CV＜5%\n10，标准曲线可长期储存，并具有自动校正功能，储存实验结果，可作动态分析",450000,450000,"精准医学实\n验室筛查室"]
[4,"自动扫描显微镜\n和图像分析系统","GSL120",1,2550000,"精准医学实\n验室细胞遗\n传室","自动细胞显微图像扫描系统及智能染色体核型分析系统",1,"1、自动细胞显微图像扫描系统及智能染色体核型分析系统均有医疗器械注册，自动细胞显微图像扫描系统和智能染色体核型分析系统需具有单独的二类医疗器械产品注册证\n2、扫描系统和分析软件同时拥有FDA及CE注册证书。​\n3、具备正置生物显微镜和配备目镜，可以人工观察染色体核型。\n4、物镜转盘：运动平台，支持≥6位电动物镜转换器（提供可以显示≥6位电动物镜转换器的实物照片）。​\n5、光学成像系统：支持不少于10倍、100倍物镜（提供你少于10倍、100倍物镜实物照片）；\n6、10倍物镜数值孔径≥0.25，工作距离≥10.6mm。100倍物镜数值孔径≥1.30，工作距离≥0.2mm。​\n7、光源系统采用透射光照明，最大功率≥24W。​\n8、聚光镜：长工作距离阿贝聚光镜，工作距离≥9.9mm。​\n9、细胞显微成像扫描相机：靶面尺寸≥1.1英寸，全帧摄取图像≥700万像素，位深≥12位。​\n10、自动进样系统，自动进样器一次性装载玻片数量＞160片以上。",1680000,1680000,"精准医学实\n验室细胞遗\n传室"]
[5,"生物安全柜","HFsafe\n-1200",1,100000,"精准医学实\n验室PCR试剂区","生物安全柜",1,"1、进风和排风均为ULPA超高效空气过滤器，针对颗粒直径0.12um，过滤效率≥99.999%\n2、工作区和外排出风口处各配备一个高灵敏度、高精度的微风速传感器，非压差传感器，真实、实时检测风速\n3、具有紫外灯预约功能，可预约紫外灯自动开启/关闭时间、灭菌时间，减少等待时间",80000,80000,"精准医学实\n验室PCR试剂区"]
[6,"生物安全柜","HFsafe\n-1200TE",1,90000,"精准医学实\n验室PCR制备区","生物安全柜",1,"1、在线实时监测并条形码显示高效过滤器的使用寿命，具有过滤器失效声光报警功能，保证实验的安全性，提供证明文件\n2、工作区和外排出风口处各配备一个高灵敏度、高精度的微风速传感器，非压差传感器，真实、实时检测风速\n3、具有紫外灯预约功能，可预约紫外灯自动开启/关闭时间、灭菌时间，减少等待时间",120000,120000,"精准医学实\n验室PCR制备区"]
[7,"全自动核酸\n提取仪","SMART-32",1,85000,"精准医学实\n验室PCR制备区","全自动核酸\n提取仪",1,"1、样本处理通量：1-32样本。\n2、样本体积：双裂解提取模式，样本提取体积最大可达700ul。\n3、采用全景式设计，便于随时观察操作界面及提取仓内状态。\n4、抽屉式取板位设计，耗材拿放自由，避免因操作阻碍而导致污染及意外。\n5、仪器自带大屏幕彩色中文操作界面，触控式操作，图形化界面，简单易用。\n6、提取程序存储量：不低于100组程序，可设置快捷运行程序。\n7、程序编辑：可根据实验需求自行新建、编辑、保存及删除实验程序。\n8、提取孔间差异：配置防污染系统，控制孔间污染及批次间污染，杜绝交叉污染。提取同一样品，孔间CT值的变异系数不超过2%。\n9、仪器带提取仓门自动锁定功能，保障操作安全。\n10.断电保护：具备断电记忆功能，重启可续接实验或可选择任意步骤开始进行实验",110000,110000,"精准医学实\n验室PCR制备区"]
[8,"全自动核酸\n提取仪","E96-11",1,85000,"精准医学实\n验室PCR制备区","全自动核酸\n提取仪",1,"1、样本处理通量：1-32样本。\n2、样本体积：双裂解提取模式，样本提取体积最大可达700ul。\n3、采用全景式设计，便于随时观察操作界面及提取仓内状态。\n4、抽屉式取板位设计，耗材拿放自由，避免因操作阻碍而导致污染及意外。\n5、仪器自带大屏幕彩色中文操作界面，触控式操作，图形化界面，简单易用。\n6、提取程序存储量：不低于100组程序，可设置快捷运行程序。\n7、程序编辑：可根据实验需求自行新建、编辑、保存及删除实验程序。\n8、提取孔间差异：配置防污染系统，控制孔间污染及批次间污染，杜绝交叉污染。提取同一样品，孔间CT值的变异系数不超过2%。\n9、仪器带提取仓门自动锁定功能，保障操作安全。\n10.断电保护：具备断电记忆功能，重启可续接实验或可选择任意步骤开始进行实验",110000,110000,"精准医学实\n验室PCR制备区"]
[9,"全自动荧光\nPCR分析仪","cobas\n z 480",1,680000,"精准医学实\n验室PCR扩增区","基因测序仪",1,"1、仪器采用半导体或相关技术采集光或电信号判定碱基信息，无需激光激发等复杂光学系统。\n2、设备技术原理采用联合探针锚定聚合测序技术。\n3、E100测序时间不超过5 h，可用于快速鉴定，需提供制造商盖章的产品彩页或官网截图。\n4、每次运行可生成≤25M 序列片段（Reads），以满足少量样本检测需求。\n5、采用线性扩增方式，每轮扩增均以原始文库分子为模板，有效减少由PCR引入的错误累积的影响。\n6、测序结果给出严格的Q30数据质量评判，SE100读长下，标准文库的测序Q30值≥90%，需提供制造商盖章的产品彩页或官网截图。\n7、可在以下操作环境运行：温度涵盖19~30℃；相对湿度：20% ~80%RH，无冷凝。",600000,600000,"精准医学实\n验室PCR扩增区"]
[10,"全自动医用\nPCR分析系统","SLAN\n-96S",2,180000,"精准医学实\n验室PCR扩增区","全自动医院\nPCR分析系统",2,"1、激发光源: LED光源(免维护)\n2、检测器: 高灵敏度光电传感器\n3、样本容量：96孔(双反应模块，2模块×48孔)(0.2ml反应管、8联管、48孔板)\n4、荧光检测波长:8通道\n5、法规使用年限: ≥7年\n6、运行控制: 一台电脑可连多台仪器，控制运行\n7、可检测的荧光素及染料：FAM,SYBR Green，VIC, HEX, Joe, TET，TAMRA，CY3，ROX, Texas Red, CY5, Quasar 705、CY5.5, Atto425，CY7 ，AF405\n8、检测方式：反应管的近底部侧面激发、检测\n9、激发、检测光的传输模式：每一反应孔独立的光纤传输\n10、软件应用模式: 定量/定性、熔解曲线（多色熔解曲线）、多管多项目分析、相对定量、等位基因、HRM（高分辨率熔解曲线）、等温扩增（备注：熔解曲线检测功能注册证上有记载，可提供熔解曲线功能仪器检测检验报告）",240000,480000,"精准医学实\n验室PCR扩增区"]
[11,"多通道荧光\n定量分析仪","Fascan \n48E",1,847000,"精准医学实\n验室PCR扩增区","全自动医院\nPCR分析系统",1,"1、激发光源: LED光源(免维护)\n2、检测器: 高灵敏度光电传感器\n3、样本容量：96孔(双反应模块，2模块×48孔)(0.2ml反应管、8联管、48孔板)\n4、荧光检测波长:8通道\n5、法规使用年限: ≥7年\n6、运行控制: 一台电脑可连多台仪器，控制运行\n7、可检测的荧光素及染料：FAM,SYBR Green，VIC, HEX, Joe, TET，TAMRA，CY3，ROX, Texas Red, CY5, Quasar 705、CY5.5, Atto425，CY7 ，AF405\n8、检测方式：反应管的近底部侧面激发、检测\n9、激发、检测光的传输模式：每一反应孔独立的光纤传输\n10、软件应用模式: 定量/定性、熔解曲线（多色熔解曲线）、多管多项目分析、相对定量、等位基因、HRM（高分辨率熔解曲线）、等温扩增（备注：熔解曲线检测功能注册证上有记载，可提供熔解曲线功能仪器检测检验报告）",240000,240000,"精准医学实\n验室PCR扩增区"]
[12,"测序仪","T400",1,847000,"精准医学实\n验室PCR分析区","基因测序仪",1,"1、仪器采用半导体或相关技术采集光或电信号判定碱基信息，无需激光激发等复杂光学系统。\n2、设备技术原理采用联合探针锚定聚合测序技术。\n3、E100测序时间不超过5 h，可用于快速鉴定，需提供制造商盖章的产品彩页或官网截图。\n4、每次运行可生成≤25M 序列片段（Reads），以满足少量样本检测需求。\n5、采用线性扩增方式，每轮扩增均以原始文库分子为模板，有效减少由PCR引入的错误累积的影响。\n6、测序结果给出严格的Q30数据质量评判，SE100读长下，标准文库的测序Q30值≥90%，需提供制造商盖章的产品彩页或官网截图。\n7、可在以下操作环境运行：温度涵盖19~30℃；相对湿度：20% ~80%RH，无冷凝。",600000,600000,"精准医学实\n验室PCR分析区"]
[13,"实时荧光\n定量PCR仪","AGS8830\n-16",1,98000,"精准医学实\n验室PCR扩增区","全自动医院\nPCR分析系统",1,"1、激发光源: LED光源(免维护)\n2、检测器: 高灵敏度光电传感器\n3、样本容量：96孔(双反应模块，2模块×48孔)(0.2ml反应管、8联管、48孔板)\n4、荧光检测波长:8通道\n5、法规使用年限: ≥7年\n6、运行控制: 一台电脑可连多台仪器，控制运行\n7、可检测的荧光素及染料：FAM,SYBR Green，VIC, HEX, Joe, TET，TAMRA，CY3，ROX, Texas Red, CY5, Quasar 705、CY5.5, Atto425，CY7 ，AF405\n8、检测方式：反应管的近底部侧面激发、检测\n9、激发、检测光的传输模式：每一反应孔独立的光纤传输\n10、软件应用模式: 定量/定性、熔解曲线（多色熔解曲线）、多管多项目分析、相对定量、等位基因、HRM（高分辨率熔解曲线）、等温扩增（备注：熔解曲线检测功能注册证上有记载，可提供熔解曲线功能仪器检测检验报告）",240000,240000,"精准医学实\n验室PCR扩增区"]
[14,"打孔机","2081\n-0010",1,570000,"精准医学实\n验室筛查室","自动化干血斑打孔仪",1,"1.实时可视化\n2.该仪器配备有摄像头和显示器，可实时以彩色显示样本图谱和穿孔情况\n3.通过同一摄像头，在相同动作下，同时读取钞箱/卡的条形码\n4.可以为距血液边缘的距离以及打击之间的距离设定限值\n5.冲头尺寸有1.5、3.2、3.8、4.75、6.0毫米，一次操作可使用两个\n6.在冲压区域使用离子发生器模块去除静电\n7.所有盖子均可拆卸，便于清洁",450000,450000,"精准医学实\n验室筛查室"]
[15,"医用冷藏\n冷冻柜","YCD-265",2,8000,"精准医学实\n验室测序2区","医用冷冻箱",2,"1.外型尺寸（宽*深*高）mm：780×660×1850\n2.内部尺寸（宽*深*高）mm：640×515x675\n3.总有效容积(升)：450\n4.存储温度（℃）：-10℃～-25℃\n5.重量（kg）：128\n6.功率:320（w）",20000,40000,"精准医学实\n验室测序2区"]
[16,"医用冷藏\n冷冻柜","YCD-265",3,8000,"精准医学实\n验室测序区","医用冷藏冷冻柜",3,"1.总有效容积: 450升\n2.存储温度: 冷藏2℃～8℃，冷冻-10℃～-25℃\n3.外部尺寸: 810×745×1960 mm\n4.内部尺寸: 上室650×570×627 mm，下室650×570×627 mm\n5.额定功率: 314W\n6.净重/毛重: 143.5/156 kg。",20000,60000,"精准医学实\n验室测序3.5区"]
[17,"立式压力\n蒸汽灭菌器","BQK-\nB75II",1,16500,"精准医学实\n验室细胞室","立式压力蒸汽灭菌器",1,"1.额定工作压力0.23Mpa。容积：100L，功率：5200W\n2.额定工作温度134℃使用温度105～136℃。\n3.内腔尺寸：386x875mm，外形尺寸：550x640x1280mm，提篮：365×360\n4.产品符合YY/T 1007-2010标准，并可提供经国家食品药品监督管理局认可检验中心的检测报告。\n5.灭菌腔体、灭菌提篮均为优质不锈钢SUS304材质制成，内部抛光处理，汽水内循环。\n6.手轮式平移门结构，并具有门安全联锁装置及门检测装置，有压力时门无法打开，门关闭不到位程序不能运行。\n7.具有防干烧报警、超压自泄、超温保护、电力安全保护，所有报警具有声光警示。\n8.LED数字显示灭菌腔内温度、时间和故障报警代码。\n9.设备注水、升温、灭菌、排气、干燥整个流程全自动运行，灭菌完成后声光提醒。\n10.灭菌腔体温度均匀性：≤2℃，干燥温度范围：50~120℃。",30000,30000,"精准医学实\n验室细胞室"]
[18,"CO2培养箱","HF151",1,44000,"精准医学实\n验室细胞遗传室","CO2培养箱",1,"1.采用微电脑温度控制器，适用于细胞、组织、微生物等培养\n2.气套式加热系统，加热迅速，温度.湿度恢复速度快\n3.内部容积：151L\n4.最低温度控制范围为室温+5℃\n*5.Pt1000温度传感器，温度控制精度（℃）：±0.1℃，带独立传感器的超温保护装置\n6.标配环境温度传感器，环境温度监测功能，可根据外界温度调整门加热的功率\n*7.90℃湿热灭菌系统，灭菌彻底，有效地清除细菌、霉菌、真菌孢子和支原体，并提供第三方检测报告\n*8.CO2浓度传感器具有\"AUTO-START\"自动启动功能，自动校准，保证CO2浓度的高精确性\n9.CO2进气口配备HEPA高效过滤器，对粒径≥0.3μm颗粒物过滤效率为99.998％\n10.内腔及附件不锈钢采用特殊电化学处理",40000,40000,"精准医学实\n验室细胞遗传室"]
[19,"药品冷藏箱","YYD-290",4,9700,"精准医学实\n验室PCR实验室","医用冷藏冷冻箱",4,"1.温度控制与稳定性\n冷藏区温度范围 2℃～8℃，冷冻区温度范围 -20℃±5℃（可按需扩展至-40℃）；箱内温度波动≤±1℃，配备多点温度传感器实时监测。\n2.多重报警系统\n具备高温、低温、断电、门未关严、传感器故障等报警功能；支持声光报警+远程预警，报警记录可追溯，阈值可自主设定。\n3.制冷系统设计\n采用双压缩机双循环结构，冷藏、冷冻独立控温互不干扰；具备快速制冷能力，满足检验科24小时连续运行需求。\n4.材质与结构安全\n内胆及搁架为 304不锈钢 材质，耐腐蚀易清洁；带安全门锁，搁架可灵活拆卸且承重性强；箱体具备防凝露设计。\n5.温度均匀性\n冷藏/冷冻箱内各测点温度均匀度≤±1.5℃，无明显温度死角，保障不同位置样本储存条件一致。\n6.数据记录与追溯\n自带嵌入式温湿度记录仪，每5~30分钟自动记录一次数据，存储容量≥10万条；数据可导出并支持与医院LIS系统对接。\n7.隔热保温性能\n采用≥60mm高密度聚氨酯发泡层；断电后冷藏区温度回升至10℃时长≥8h，冷冻区回升至-15℃时长≥24h。\n8.消毒防污染功能\n内胆及搁架支持紫外或臭氧消毒；冷冻区配备独立密封抽屉，防止样本交叉污染，适配核酸、血清、试剂等储存。",15000,60000,"精准医学实\n验室PCR实验室"]
[20,"医用低温\n保存箱","DW-\n25L92",1,9800,"精准医学实\n验室PCR试剂区","医用低温保存箱",1,"1.温度控制与稳定性\n额定温度范围 -20℃±5℃（基础款）/ -40℃±5℃（低温款）/ -86℃（超低温款，按需选择）；箱内温度波动≤±1℃；配备≥3个独立温度传感器，实时监测箱内不同区域温度，支持高温、低温超阈值预警。\n2.有效容积\n有效容积≥800L，内部采用多层可调节搁架/抽屉式结构，搁架承重≥30kg/层，满足检验科大批量样本（血清、血浆、核酸标本等）储存需求。\n3.制冷系统与保温性能\n采用双压缩机双级制冷系统，支持故障冗余备份，确保24小时连续稳定运行；箱体发泡层为高密度聚氨酯，厚度≥100mm；断电后，-20℃款温度回升至-10℃时长≥48h，-86℃款温度回升至-60℃时长≥24h。\n4.多重报警与安全防护\n具备断电、传感器故障、门未关严、温度超阈值等声光+远程报警功能；配备电子门锁+机械门锁双重防护，防止非授权开启；支持超温自动断电保护，避免样本损毁。\n5.温度均匀性\n空载状态下，箱内各测点温度均匀度≤±2℃，无明显温度死角，保障不同位置样本储存条件一致。\n6.数据记录与追溯\n内置嵌入式温湿度记录仪，采样间隔可设（5~30min），数据存储容量≥10万条；支持U盘导出数据，可对接医院LIS系统，实现温度数据全流程追溯；数据断电保存≥10年。\n7.材质与结构设计\n内胆及搁架采用 304不锈钢 材质，耐腐蚀、易清洁消毒，可耐受酒精、含氯消毒剂擦拭；门体采用真空绝热技术，配备加热防凝露功能；底部带万向轮+固定脚杯，方便移动与定位。\n8.认证与合规性\n符合 ISO 13485 医疗器械质量管理体系认证、医疗器械产品注册证；通过低温性能第三方检测，提供权威检测报告；满足医院生物安全二级实验室使用要求。",18000,18000,"精准医学实\n验室PCR试剂区"]
[21,"液相色谱串联\n质谱检测系统","4500MD",1,3180000,"精准医学实\n验室质谱室","三重四极杆质\n谱检测系统",1,"1.离子源配备真空隔断阀。（仪器构造图佐证）\n2.碰撞池采用直线型设计。（仪器构造图佐证）\n3.检测器采用光电倍增检测器。\n4.质谱仪集成配置校准品进样系统，可通过软件进行控制。（仪器实物图+软件界面截图佐证）\n5.灵敏度：ESI（+）模式1pg利血平柱上进样，信噪比 ≥100000:1（m/z 609>195）\n6.检测质量范围：5-2000m/z\n7.质量数稳定性：24小时内质量数漂移<0.1Da\n8.正负离子扫描模式切换时间≤20ms\n9.液相泵最高耐压≥18000 psi。（系统软件截图）\n10.液相泵最高流速≥2.00mL/min",2000000,2000000,"精准医学实\n验室质谱室"]
[22,"牙科综合治疗椅","E30",3,180000,"口腔科诊疗1室、诊疗2室、诊疗3室","全电脑牙科综合治疗机",4,"1、具备WIFI功能，可方便连接可用的WIFI，轻松实现设备互联互通。     2、具备一键急救功能，有效防止突发状况发生。         \n3、具备通过人机语音智能交互实现设备控制及音乐播放和切换功能。         4、助手单元有4个器械挂架：三用枪、强吸、弱吸、光固化（预留），采用光电开关无接触控制，满足助手配合治疗的操作需求。",210000,840000,"口腔科诊疗1室、诊疗2室、诊疗3室"]
[23,"牙科综合治疗椅","Primus 1058tm",1,220000,"口腔科特诊",{"$nulls":3},210000,0,"口腔科特诊"]
[24,"三合一数字化口腔全景X光机+牙片机","Planmeca  ProMax 3D mid",1,1500000,"口腔CT室","坐式口腔CBCT（四合一）",1,"1、有预设的SML档位，适应不同体型的人群。           \n2具备儿童曝光预置参数。          \n3、曲面体层摄影模式具备智能多轨迹聚焦全景，无需调整尖牙线即可完成摆位。         \n4、具备三维图像自由切割，提升医生阅片体验。        \n5、具备一键去除脊柱功能，便于消除脊柱的影响，提升阅片与沟通。         6、具备运动伪影检测功能，快速提示医生患者成片情况。",600000,600000,"口腔CT室"]
[25,"迈瑞便携式彩色超声仪","M7 Expert",1,650000,"超声科\n1诊室","彩色多普勒\n超声诊断仪（床旁）",1,"1、≥15.6寸高清晰、医用专业彩色显示屏，分辨率不低于1920x1080，根据环境光变化自动调节亮度\n2、镁合金外壳设计，手柄一体化机身\n3、彩色多普勒成像（包括彩色、能量、方向能量多普勒模式），自动调节取样框的角度及位置\n4、一键自动优化（包括应用于二维、彩色、频谱模式、TDI及造影）\n5、用途：满足腹部、 心脏、浅表、血管、神经肌骨、妇产等全身 应用需求，全面拓展麻醉、TEE、 ICU/CCU、介入、术中、 急诊等新兴临床领域\n6、智能血流跟踪技术，可以实现ROI框位置和角度的自动优化，提供Color/Power模式下彩色血流/能量图像的实时动态优化，节省人工调节时间，提升扫查效率。\n7、原始数据处理，可对回放图像进行≥34种参数调节\n8、取样框偏转: ≥±30度 (线阵探头)\n9、探头配置（3把）：单晶凸阵探头、线阵探头、单晶体相控阵探头",1000000,1000000,"超声科1诊室"]
[26,"迈瑞彩色多普勒超声","DC-8",1,1350000,"超声科\n4诊室","彩色多普勒\n超声诊断仪",1,"1.操作面板具备角度可调液晶触摸屏≥15英寸\n2.物理通道数≥256\n3.支持探头抬起自动唤醒，拿起探头自动进入扫描模式，无菌操作更方便\n4.肌骨二维成像实时模式下，支持一键自动识别肌骨标准切面并对切面的不同组织结构用不同的颜色标记和名称注释标注，或具备教学软件\n5.主机内置产科扫描助手，开启后，在产科二维实时扫查过程中不用按键，即可自动识别捕捉胎儿相关标准切面≥20个，并同屏同步自动存储于图像剪贴板区域，并进行自动测量。\n6.盆底扫描助手：一键自动识别标准切面并自动测量，支持腹部容积、腔内容积及凸线双平面探头\n7.主机内置探头接口≥5个，全激活互通互用，均为无针触点式大接口，另具备笔式探头接口。\n8.支持腹部探头，浅表探头，心脏探头，经食道探头，笔式探头，凸凸双平面探头，凸线双平面探头、腹腔镜超声探头等\n9.腔内探头实时控技术，温度值实时显示在显示屏，支持多种探头\n10.可支持单晶线阵探头线阵探头及单晶心脏相控阵探头",1800000,1800000,"超声科4诊室"]
[27,"飞利浦全数字化高端\n彩色多普勒超声诊断仪","EPIQ7",1,3450000,"羊穿手术室","彩色多普勒\n超声诊断仪",1,"1、全数字化超声成像系统，Windows操作系统 ，主机要求搭载数字化SSD固态硬盘容量≥1TB。\n2、数字化TGC≥9段分布于触摸屏，（非实体按键）且可随不同预设保存。\n3、系统最大动态范围：≥350dB\n4、具备超微血流成像技术及定量分析技术\n5、具备造影成像功能：支持凸阵、线阵、腔内探头的造影，具备在机TIC曲线分析，支持≥12个参数分析，充分满足造影模式下的临床应用及科研需求\n6、具备弹性成像单元：可进行弹性定量，且具备甲状腺专用、乳腺专用的弹性成像和定量工具，支持剪切波弹性成像。\n7、具备甲状腺、乳腺自动检测和诊断工具：在机实现符合各分类标准的数据及报告系统，提高诊断准确性。（提供图片证明）\n8、具备单晶体（凸阵、线阵、相控阵、）探头技术，探头配置≥4把\n8.1、单晶体凸阵探头：频率范围：1-7MHz，支持超声造影及定量分析、剪切波弹性成像、肝肾比等功能\n8.2、单晶体线阵探头：频率范围：2-14MHz，支持超声造影及定量分析，弹性成像，剪切波等功能\n8、3、单晶体相控阵探头：频率范围：1-5MHz \n8.4、腔内微凸阵探头：频率范围：2-11MHz\n9、提供免费保修年限为36个月",2100000,2100000,"羊穿手术室"]
[28,"东芝高档实时四维彩色\n多谱勒超声波诊断仪","APLIO 500 \nTUS-A500",1,2800000,"超声科\n3诊室","彩色多普勒\n超声诊断仪",1,"1.设备用途及说明：全身应用型彩色多普勒超声波诊断系统，主要用于腹部、心脏、妇产科等多领域临床诊断及学术研究，须提供厂家具备三类注册证的最新旗舰高端产品及最新版本\n2.具备宽景成像：支持凸阵、相控阵、线阵等所有 2D 成像探头，扫描长度≥110cm\n3.一般测量：具备乳腺、甲状腺、肝脏病灶自动测量功能，自动勾勒病灶边界并自动测量\n4.固态硬盘容量≥1TB\n5.支持多普勒血流定量\n6.显示器：≥23.8 英寸高分辨率显示屏，具备万向关节臂，可实现上下左右前后任意方位调节，可前后折叠\n7.探头接口：可激活探头接口≥4 个（不包括笔式探头接口），均为无针触点式大接口，可通用互换\n8.阵元数：凸阵≥192；线阵≥1000；相控阵≥200\n9.成人腹部凸阵探头：单晶体，超声频率 1.0-6.0MHz，支持造影、应变式弹性和剪切波弹性\n10.宽频微凸腔内探头：超声频率 2.0-9.0MHz，视野角度≥180°，阵元数≥192，支持造影、应变式弹性和剪切波弹性",2300000,2300000,"超声科3诊室"]
[29,"GE高档实时四维彩色多\n谱勒超声波诊断仪","Voluson E8",1,2800000,"超声科\n6诊室","彩色多普勒\n超声诊断仪",1,"1.数字化 TGC≥9 段分布于触摸屏（非实体按键），且可随不同预设保存\n2. 超微血流定量分析技术：通过彩色部分的像素数与感兴趣区像素的比值得到 VI（血管指数），可定量显示 VI\n3.具备在机 TIC 曲线分析，支持≥11 个参数分析，充分满足造影模式下的临床应用及科研需求\n4.具备肝脏脂肪定量分析技术\n5. 甲状腺自动检测和诊断：可自动识别甲状腺肿物的多种参数，在机实现符合 TI-RADS 分类标准的数据及报告，自动识别肿物良恶性\n6. 胎儿生长参数智能测量功能：基于深度学习算法，在图像上智能识别并自动测量胎儿生长参数，包括双顶径、头围、腹围、股骨、肱骨、头臀长、NT 等\n7.单晶体凸阵探头：频率范围 fmax≥6MHz、fmin≤1MHz，支持超声造影及定量分析、剪切波弹性成像、肝肾比等功能\n8. 单晶体线阵探头：频率范围 fmax≥13MHz、fmin≤2MHz，支持超声造影及定量分析、弹性成像、剪切波等功能\n9. 监视器：≥23.5 英寸 LED 监视器，可上下、前后、左右自由活动、仰俯，旋转角度可达 +/-360 度\n10.具备≥13.8 英寸彩色 LED 触摸控制屏，触摸屏可做独立感应式位置调整，倾斜角度≥30 度",2300000,2300000,"超声科6诊室"]
[30,"GE高档实时四维彩色多\n谱勒超声波诊断仪","Voluson E8",1,2800000,"妇科门诊","彩色多普勒\n超声诊断仪",1,"1.数字化 TGC≥9 段分布于触摸屏（非实体按键），且可随不同预设保存\n2. 超微血流定量分析技术：通过彩色部分的像素数与感兴趣区像素的比值得到 VI（血管指数），可定量显示 VI\n3.具备在机 TIC 曲线分析，支持≥11 个参数分析，充分满足造影模式下的临床应用及科研需求\n4.具备肝脏脂肪定量分析技术\n5. 甲状腺自动检测和诊断：可自动识别甲状腺肿物的多种参数，在机实现符合 TI-RADS 分类标准的数据及报告，自动识别肿物良恶性\n6. 胎儿生长参数智能测量功能：基于深度学习算法，在图像上智能识别并自动测量胎儿生长参数，包括双顶径、头围、腹围、股骨、肱骨、头臀长、NT 等\n7.单晶体凸阵探头：频率范围 fmax≥6MHz、fmin≤1MHz，支持超声造影及定量分析、剪切波弹性成像、肝肾比等功能\n8. 单晶体线阵探头：频率范围 fmax≥13MHz、fmin≤2MHz，支持超声造影及定量分析、弹性成像、剪切波等功能\n9. 监视器：≥23.5 英寸 LED 监视器，可上下、前后、左右自由活动、仰俯，旋转角度可达 +/-360 度\n10.具备≥13.8 英寸彩色 LED 触摸控制屏，触摸屏可做独立感应式位置调整，倾斜角度≥30 度",2300000,2300000,"妇科门诊"]
[31,"西门子高档实时四维彩\n色多普勒超声波诊断仪","ACUSON S200",1,2300000,"体检中心","彩色多普勒\n超声诊断仪",1,"1、同时满足腹部超声、浅表超声 、心脏超声和阴超等诊疗需求，配备腹部（1-5MHz）、浅表（ 5-13MHz）、阴超（2-10MHz）扫描角度200°、心脏（1-5MHz）4把超声探头，超声一站式检查。\n2、主机同时具备压力式弹性成像，剪切波弹性成像及弥漫性病变弹性成像功能。\n3、可以在同一心动周期，实现两个不同位点的多普勒同步取样，PW&PW;TDI&TDI,TDI&PW。\n4、超微血流成像，增强显示超低速血流信号；具有高敏感高分辨、高帧频、低噪声等优势。\n5、线阵扫描感兴趣区的图像范围-30° ~ +30°。\n6、造影谐波成像,支持双时间计时器，具备造影时序分析技术。\n7、自动胎儿心率测量功能：在B模式成像时，通过追踪胎儿心脏感兴趣区的运动自动测量胎儿心率。\n8、TGC时间增益补偿≥8段，LGC侧向增益补偿≥8段。\n9、连续多普勒显示及分析系统，支持凸阵、线阵、相控阵探头。\n10、产品注册证属于医疗器械三类。",2300000,2300000,"体检中心"]
[32,"飞利浦全数字化高端彩\n色多普勒超声诊断仪","Affinit 50",1,1000000,"妇科\n手术室","彩色多普勒\n超声诊断仪",1,"1、同时满足腹部超声、浅表超声 、心脏超声和阴超等诊疗需求，配备腹部（1-5MHz）、浅表（ 5-13MHz）、阴超（2-10MHz）扫描角度200°、心脏（1-5MHz）4把超声探头，超声一站式检查。\n2、主机同时具备压力式弹性成像，剪切波弹性成像及弥漫性病变弹性成像功能。\n3、可以在同一心动周期，实现两个不同位点的多普勒同步取样，PW&PW;TDI&TDI,TDI&PW。\n4、超微血流成像，增强显示超低速血流信号；具有高敏感高分辨、高帧频、低噪声等优势。\n5、线阵扫描感兴趣区的图像范围-30° ~ +30°。\n6、造影谐波成像,支持双时间计时器，具备造影时序分析技术。\n7、自动胎儿心率测量功能：在B模式成像时，通过追踪胎儿心脏感兴趣区的运动自动测量胎儿心率。\n8、TGC时间增益补偿≥8段，LGC侧向增益补偿≥8段。\n9、连续多普勒显示及分析系统，支持凸阵、线阵、相控阵探头。\n10、产品注册证属于医疗器械三类。",2700000,2700000,"妇科手术室"]
[33,"三星麦迪逊彩色多普勒\n超声诊断仪","H60",1,950000,"超声科\n7诊室","彩色多普勒\n超声诊断仪(床旁)",1,"1、≥15.6寸高清晰、医用专业彩色显示屏，分辨率不低于1920x1080，根据环境光变化自动调节亮度\n2、镁合金外壳设计，手柄一体化机身\n3、彩色多普勒成像（包括彩色、能量、方向能量多普勒模式），自动调节取样框的角度及位置\n4、一键自动优化（包括应用于二维、彩色、频谱模式、TDI及造影）\n5、用途：满足腹部、 心脏、浅表、血管、神经肌骨、妇产等全身 应用需求，全面拓展麻醉、TEE、 ICU/CCU、介入、术中、 急诊等新兴临床领域\n6、智能血流跟踪技术，可以实现ROI框位置和角度的自动优化，提供Color/Power模式下彩色血流/能量图像的实时动态优化，节省人工调节时间，提升扫查效率。\n7、原始数据处理，可对回放图像进行≥34种参数调节\n8、取样框偏转: ≥±30度 (线阵探头)\n9、探头配置（3把）：单晶凸阵探头、线阵探头、单晶体相控阵探头",1000000,1000000,"超声科7诊室"]
[34,"西门子多层螺旋CT","SOMATOM scope",1,5300000,"影像科\nCT机房","CT",1,"1、投标产品必须具备独立的NMPA，提供2024年及以后首次注册NMPA证书。（不包含原注册证变更）\n2、探测器物理排数：传统单套探测器Z轴等宽≥256排；或双源系统；或双层探测器系统。（需提白皮书或注册证或检测报告佐证）\n3、最快扫描速度： ≤0.25秒/360°\n4、球管阳极热容量：≥30MHU（需提白皮书或注册证或检测报告佐证）\n5、球管最大电流：≥1250mA 、最小电压：≤70KV，\n6、高压发生器功率（非等效）：≥108kW\n7、床面最大水平移动速度：≥350mm/秒  \n8、图像重建速度：≥80幅/秒   \n9、具备能量成像功能（提供FDA或者CE认证）\n10、具备儿童专用低剂量扫描模式（区别于常规模式，需说明实现方式）",13000000,13000000,"影像科CT机房"]
[35,"新生儿辐射台/HKN-93A","hkn-93A",3,50000,"新生儿科","婴儿辐射保暖台",3,"1.基本配置：辐射箱，控制仪，皮肤温度传感器，婴儿床，托盘，输液架，机架，SPO2脉搏血氧监测装置，储物抽屉。\n黄疸治疗装置，负压吸引装置，T组合复苏装置，空氧混合装置，称重系统，监护托盘，UPS电源，电动升降\n2.皮肤温度传感器精度：±0.2℃内；\n3.重量显示精度：±1%内；\n4.温度控制模式：预热模式、手控模式、肤温模式；\n5.氧浓度设置范围：21%~100%；精度：≤±3%O2（V/V）；\n6.复苏气体流量范围： 5-15L/min\n7.压力表量程指示范围：-10cmH2O～80cmH2O，精度：±2%满刻度；",100000,300000,"新生儿科"]
[36,"新生儿暖箱","YP-970",8,65000,"新生儿科","婴儿培养箱",8,"1.箱温和肤温显示温度范围：5～65℃\n2.升温时间：≤30min\n3.培养箱温度与平均培养箱温度之差： ≤0.5℃\n4.平均培养箱温度与控制温度之差：≤±1.0℃\n5.温度均匀性（床垫处于水平位置）：≤0.8℃\n6.配有硅胶床垫\n7.皮肤温度传感器精度：±0.2℃内\n8.婴儿舱内噪声: ≤45dB（A）（稳定温度状态下）\n9.湿度控制精度：±15%RH\n10具有上黄疸治疗装置和下黄疸治疗装置",30000,240000,"新生儿科"]
[37,"注射泵双道","JZB-1800D",10,8000,"新生儿科","注射泵（双通道）",10,"1.显示：产品开机后，应能正常显示。在进行各种工作模式转换时，显示的数字和文字清晰。在测试状态下，显示的流量，累积流量、压力、时间等参数能实时更新。\n2.产品具有系统自检功能，包含扬声器自检、报警灯自检、蜂鸣器自检功能；\n3.产品具有品牌选择、注射器选择功能；\n4.产品具有输液、输液暂停、手动快进、自动快进、输液中更改流速、排气、体重模式配置、药物库、参数记忆功能、系统日期与时间设置、系统语言、压力单位、Anti-bolus 开关、状态指示功能；\n5.产品具有输液模式选择功能，可选择速度模式、体重模式、时间模式、间断给药模式、联动运行；\n6.产品具有输液参数设置功能；\n7.产品具有系统设置功能；\n8.注射精度：在标准测试条件下，注射精度误差应≤±1.5%\n9.内置式电池：7.2V 高容量锂电池\n10.内置式电池连续使用时间：在厂家默认设置条件下，单通道以 5ml/h的流速连续运行，使用充满电的新电池放电时间不小于10h。在厂家默认设置条件下，双通道以5ml/h的流速连续运行使用充满电的新电池放电时间不小于6h。",5000,50000,"新生儿科"]
[38,"BI-冷光源灯","BT-400",3,6000,"新生儿科","新生儿黄疸治疗仪",3,"1.光照有效面积：≥40cm×30cm \n2.有效表面内的胆红素总辐照度最大值:≥ 5.0mW/cm²\n3.有效表面内的总辐照度:≥4.5mW/cm²\n4.有效表面内的胆红素总辐照度均匀性：＞0.4\n5.工作噪声：≤50dB(A)\n6.辐照灯箱具有平移功能，辐照角度0～60°倾斜可调\n7.光源为LED,使用期限≥50000小时\n8.工作总计时显示范围：0～99999.9小时\n9.蓝光输出强度调节范围：0～100%\n10.≥4.3英寸彩色液晶触摸屏，分辨率：≥480*272",10000,30000,"新生儿科"]
[39,"多功能麻醉机","Tino(FabiusTiro)",1,420000,"3手术间","多功能麻醉机",1,"1.用于对成人、儿童和新生儿的吸入麻醉及呼吸管理\n2.可选配高流量给氧功能，流量范围 2-80 L/min，氧浓度设置范围21~100%\n3.标配一个高品质七氟醚挥发罐，挥发罐和主机同品牌，非其他品牌代工贴牌（非OEM）产品，挥发罐通过CE和FDA认证，具备压力、流速和温度补偿\n4.二氧化碳吸收罐，容积≤1500ml\n5.具备智能回路识别报警系统，当钠石灰罐未安装到位时，机器能智能识别，并报警提示。\n6.不小于15英寸彩色触摸屏，可同屏显示波形和呼吸环图\n7.插件可在同品牌监护仪和麻醉机之间通用\n8.可连接同一品牌监护仪，全面监测病人生命体征，监护仪参数可显示在麻醉机上\n9.可连接同一品牌输注泵，可在麻醉机屏幕上调节输注泵设置参数，可基于药代药效模型计算吸入麻药和静脉麻药的综合药效\n10.可扩展连接支持HL7协议的设备",400000,{"$f":"H41*J41","v":400000},"3手术间"]
[40,"多功能麻醉机","PlusxL",2,320000,"门诊胃肠镜室、麻醉创新诊疗工作室","多功能麻醉机",2,"1.用于对成人、儿童和新生儿的吸入麻醉及呼吸管理\n2.可选配高流量给氧功能，流量范围 2-80 L/min，氧浓度设置范围21~100%\n3.标配一个高品质七氟醚挥发罐，挥发罐和主机同品牌，非其他品牌代工贴牌（非OEM）产品，挥发罐通过CE和FDA认证，具备压力、流速和温度补偿\n4.二氧化碳吸收罐，容积≤1500ml\n5.具备智能回路识别报警系统，当钠石灰罐未安装到位时，机器能智能识别，并报警提示。\n6.不小于15英寸彩色触摸屏，可同屏显示波形和呼吸环图\n7.插件可在同品牌监护仪和麻醉机之间通用\n8.可连接同一品牌监护仪，全面监测病人生命体征，监护仪参数可显示在麻醉机上\n9.可连接同一品牌输注泵，可在麻醉机屏幕上调节输注泵设置参数，可基于药代药效模型计算吸入麻药和静脉麻药的综合药效\n10.可扩展连接支持HL7协议的设备",400000,{"$f":"H42*J42","v":800000},"门诊胃肠镜室、麻醉创新诊疗工作室"]
[41,"多功能麻醉机","PLUS",2,250000,"9手术间、妇科门诊人流手术室","多功能麻醉机",2,"1.用于对成人、儿童和新生儿的吸入麻醉及呼吸管理\n2.可选配高流量给氧功能，流量范围 2-80 L/min，氧浓度设置范围21~100%\n3.标配一个高品质七氟醚挥发罐，挥发罐和主机同品牌，非其他品牌代工贴牌（非OEM）产品，挥发罐通过CE和FDA认证，具备压力、流速和温度补偿\n4.二氧化碳吸收罐，容积≤1500ml\n5.具备智能回路识别报警系统，当钠石灰罐未安装到位时，机器能智能识别，并报警提示。\n6.不小于15英寸彩色触摸屏，可同屏显示波形和呼吸环图\n7.插件可在同品牌监护仪和麻醉机之间通用\n8.可连接同一品牌监护仪，全面监测病人生命体征，监护仪参数可显示在麻醉机上\n9.可连接同一品牌输注泵，可在麻醉机屏幕上调节输注泵设置参数，可基于药代药效模型计算吸入麻药和静脉麻药的综合药效\n10.可扩展连接支持HL7协议的设备",400000,800000,"9手术间、妇科门诊人流手术室"]
[42,"多功能麻醉机","S6200",2,170000,"3楼妇科门诊\n宫腔镜手术室、8楼分娩镇痛手术室","多功能麻醉机",2,"1.用于对成人、儿童和新生儿的吸入麻醉及呼吸管理\n2.可选配高流量给氧功能，流量范围 2-80 L/min，氧浓度设置范围21~100%\n3.标配一个高品质七氟醚挥发罐，挥发罐和主机同品牌，非其他品牌代工贴牌（非OEM）产品，挥发罐通过CE和FDA认证，具备压力、流速和温度补偿\n4.二氧化碳吸收罐，容积≤1500ml\n5.具备智能回路识别报警系统，当钠石灰罐未安装到位时，机器能智能识别，并报警提示。\n6.不小于15英寸彩色触摸屏，可同屏显示波形和呼吸环图\n7.插件可在同品牌监护仪和麻醉机之间通用\n8.可连接同一品牌监护仪，全面监测病人生命体征，监护仪参数可显示在麻醉机上\n9.可连接同一品牌输注泵，可在麻醉机屏幕上调节输注泵设置参数，可基于药代药效模型计算吸入麻药和静脉麻药的综合药效\n10.可扩展连接支持HL7协议的设备",400000,800000,"3楼妇科门诊\n宫腔镜手术室、8楼分娩镇痛手术室"]
[43,"多功能麻醉机","ufTO EX-65",3,300000,"门诊海扶刀\n室、6手术间、7手术间","多功能麻醉机",3,"1.用于对成人、儿童和新生儿的吸入麻醉及呼吸管理\n2.可选配高流量给氧功能，流量范围 2-80 L/min，氧浓度设置范围21~100%\n3.标配一个高品质七氟醚挥发罐，挥发罐和主机同品牌，非其他品牌代工贴牌（非OEM）产品，挥发罐通过CE和FDA认证，具备压力、流速和温度补偿\n4.二氧化碳吸收罐，容积≤1500ml\n5.具备智能回路识别报警系统，当钠石灰罐未安装到位时，机器能智能识别，并报警提示。\n6.不小于15英寸彩色触摸屏，可同屏显示波形和呼吸环图\n7.插件可在同品牌监护仪和麻醉机之间通用\n8.可连接同一品牌监护仪，全面监测病人生命体征，监护仪参数可显示在麻醉机上\n9.可连接同一品牌输注泵，可在麻醉机屏幕上调节输注泵设置参数，可基于药代药效模型计算吸入麻药和静脉麻药的综合药效\n10.可扩展连接支持HL7协议的设备",400000,1200000,"门诊海扶刀\n室、6手术间、7手术间"]
[44,"多参数监护仪","up50",2,215000,"1手术间、\n3手术间","多参数监护仪",2,"1.模块化插件式床边监护仪，主机、显示屏和插件槽一体化设计，主机插槽数≥6个\n2.监护仪主机（非辅助插件箱）每个槽位均具备插件模块红外通讯接口以及金属硬件通讯接口（非供电接口），保证模块通讯速率及稳定性，提供监护仪主机插槽图片证明\n3.可内置高能锂电池，供电时间≥2小时\n4.支持房颤及室上性心律失常分析功能，如：室上性心动过速，SVCs/min等，标配支持≥27种实时心律失常分析\n5.支持≥3通道心电波形同步分析，可进行多导心电分析，提供产品界面、手册截图或技术专利证名材料\n6.提供FloTrac监测功能模块或可实现FloTrac技术单机产品，非漂浮导管热稀释法或无创阻抗法，可通过监测挠动脉压力提供连续心排量（CCO），每搏量变异（SVV），实时外周血管阻力（SVR）等监测参数，满足连续血流动力学监测需求\n7.配置指套式血氧探头，支持浸泡清洁与消毒，防水等级IPx7\n8.提供PiCCO技术监测功能模块或PiCCO技术单机产品，非漂浮导管热稀释法或无创阻抗法，可监测胸腔内血容量(ITBV)、血管外肺水(EVLW)，肺毛细血管通透性指数(PVPI)等参数，提供完整的血流动力学参数监测\n9.支持升级模块，进行RM呼吸力学监测，提供≥18项呼吸力学参数参数指标，可监测包括： PIF峰值吸气流量，PEF峰值呼气流量， WOB病人呼吸功，NIF负吸入压力，RSBI浅呼吸指数\n10.产品设计使用年限≥10年",130000,260000,"1手术间、\n3手术间"]
[45,"多参数监护仪","MP20",8,77500,"6、7、9手术间；门诊妇科手术室2台、胃肠镜室1台、海扶刀室1台、麻醉创新诊疗工作室1台","多参数监护仪",8,"1.模块化插件式床边监护仪，主机、显示屏和插件槽一体化设计，主机插槽数≥6个\n2.监护仪主机（非辅助插件箱）每个槽位均具备插件模块红外通讯接口以及金属硬件通讯接口（非供电接口），保证模块通讯速率及稳定性，提供监护仪主机插槽图片证明\n3.可内置高能锂电池，供电时间≥2小时\n4.支持房颤及室上性心律失常分析功能，如：室上性心动过速，SVCs/min等，标配支持≥27种实时心律失常分析\n5.支持≥3通道心电波形同步分析，可进行多导心电分析，提供产品界面、手册截图或技术专利证名材料\n6.提供FloTrac监测功能模块或可实现FloTrac技术单机产品，非漂浮导管热稀释法或无创阻抗法，可通过监测挠动脉压力提供连续心排量（CCO），每搏量变异（SVV），实时外周血管阻力（SVR）等监测参数，满足连续血流动力学监测需求\n7.配置指套式血氧探头，支持浸泡清洁与消毒，防水等级IPx7\n8.提供PiCCO技术监测功能模块或PiCCO技术单机产品，非漂浮导管热稀释法或无创阻抗法，可监测胸腔内血容量(ITBV)、血管外肺水(EVLW)，肺毛细血管通透性指数(PVPI)等参数，提供完整的血流动力学参数监测\n9.支持升级模块，进行RM呼吸力学监测，提供≥18项呼吸力学参数参数指标，可监测包括： PIF峰值吸气流量，PEF峰值呼气流量， WOB病人呼吸功，NIF负吸入压力，RSBI浅呼吸指数\n10.产品设计使用年限≥10年",130000,1040000,"6、7、9手术间；门诊妇科手术室2台、胃肠镜室1台、海扶刀室1台、麻醉创新诊疗工作室1台"]
[46,"电子除颤仪（加起搏）","u3535A",1,160000,"麻醉恢复室","电子除颤仪（加起搏）",1,"1.具备手动除颤、心电监护、呼吸监护、自动体外除颤（AED）功能，AED功能适用于29天以上人群。\n2.彩色电容触摸屏≥9英寸, 分辨率1200×1020像素，可显示≥7通道监护参数波形，支持手势操作、自动亮度调节。\n3.提供图形化故障排除指引，帮助医护人员快速解决设备故障。\n4.除颤采用双相波技术，具备自动阻抗补偿功能。\n5.体外除颤电极板同时支持成人和小儿，一体化设计，支持快速切换。\n6.电极板支持能量选择，充电和放电三步操作，满足单人除颤操作。\n7.AED除颤功能提供中文语音和中文提醒功能，对于抢救过程支持自动录音功能，记录时长≥8小时。\n8.抢救结束后自动生成抢救报告，并可通过网络将除颤和按压数据自动上传至急救数据分析系统；急救数据分析系统提供抢救数据复盘、分析工具。\n9.支持培训模式，包含CPR操作培训、抢救操作培训；可提供培训考核系统，10.支持多台设备同时接入进行在线培训、考核。",80000,80000,"麻醉恢复室"]
[47,"移动DSA C臂X光机","OEC9900 Elite",1,4250000,"6手术间","移动DSA C臂X光机",1,"1，最大输出功率：25kW \n2，主逆变频率：60kHz 双焦点X线管,       \n3，C形臂沿水平轴旋转角度：±180            \n4，球管组件热容:1000kJ                     \n5，平板尺寸：300mm×300mm            \n6，双焦点X线管：0.6mm/1.3mm，旋转阳极             \n7，监视器：21寸灰阶液晶显示器         \n8，焦点至影像接收器距离最大：1100mm    \n9，C形臂左右摆动：±15°                               \n10，C形臂的开口距离最大：940mm",1400000,1400000,"6手术间"]
[48,"微量注射泵（双通道）","JZB-1800D",10,6900,"麻醉准备间4台、创新诊疗工作室6台","微量注射泵（一拖四）",10,"1.输液信息采集系统需通过NMPA三类注册证\n2.整机设计使用年限≥10年，需提供证明材料\n3.可通过有线网络直接接入同品牌监护仪中央站，实现监护仪和输注泵信息同屏查看\n4.注射精度≤±1.8%\n5.注射泵可选TCI模式，TCI模式支持三种药物：丙泊酚，瑞芬太尼，苏芬太尼，支持丙泊酚小儿药代模型\n6.注射泵及输液泵均支持药物色彩标识，选择不同类型药物时对应的药物色彩标识自动显示在屏幕上，支持4种以上颜色\n7.注射泵及输液泵均满足EN1789标准，适合在救护车使用，需提供证明\n8.输液泵可可升级肠内营养液输液功能，并提供证明文件\n9.输液泵具备阻塞前预警提示功能，当管路压力未触发阻塞报警时，泵可自动识别压力上升并在屏幕上进行提示\n10.具备单个气泡和累积气泡报警功能，支持最小15μL的单个气泡报警",70000,700000,"麻醉准备间4台、创新诊疗工作室6台"]
[49,"麻醉回路消毒机","SN-803-A",1,150000,"麻醉准备间","麻醉回路消毒机",1,"消毒剂或 12%过氧化氢、纯氧制备活氧对呼吸机进气端及呼出端分别进行消毒。\n2、消毒设备具有国家二类医疗器械许可证、注册证、生产企业卫生许可证、消毒产品卫生安全评价报告。消毒试剂具有生产企业卫生许可证、消毒产品卫生安全评价报告。提供盖章资质。\n3、复合醇消毒液有效成份明确：乙醇、异丙醇（乙醇含量（78.0±5）%(v/v）；异丙醇（15±1）%(v/v））。且消毒液需提供无毒、无刺激、无粘连检验报告。消毒剂使用说明应包含适用于麻醉机、呼吸机消毒等字样，避免不当使用消毒剂导致麻醉机、呼吸机损坏（提供产品说明）。\n4、消毒时间：（非手动调节）\n（1）麻醉机消毒模式：\n运行时间：即：常规消毒20min，强化消毒30min （使用醇类复合消毒剂）\n（2）呼吸机消毒模式：\n1）呼出端消毒运行时间：\n常规模式:运行时间即：20min雾化消毒和10min干燥。（使用醇类复合消毒剂）\n强化模式:运行时间即：20min雾化、10min消毒和10min干燥。\n2）吸入端消毒运行时间即：20 min消毒和10 min解析。（纯氧制备活氧对呼吸机进气端动态消毒，呼吸机开机调整潮气量，氧浓度，呼吸频率）\n5、消毒级别：满足《消毒技术规范》最高要求： \n5.1、必须杀灭芽孢，符合消毒设备高水平消毒要求,枯草杆菌黑色变种芽孢灭菌对数值：＞3.0。（提供国家政府机构监测报告为准） \n5.2、对龟分枝杆菌脓肿亚种的杀灭对数值＞4.0，对脊髓灰质炎病毒的杀灭对数值≥4.0，白色念珠菌的杀灭对数值＞4.0，大肠杆菌的杀灭对数值＞5.0，金黄色葡萄球菌的杀灭对数值＞5.0，铜绿假单菌的杀灭对数值＞5.0 ，对人类冠状病毒杀灭对数值≥4.0，对黑曲霉菌的杀灭对数值均>4.0，对耐碳青霉烯铜绿假单胞菌的杀灭对数值均>5.0。可在官方网站查询，投标文件中提供官网查询截图。 \n6、消毒腐蚀：消毒完成后回路内无任何腐蚀，可提供无腐蚀性报告。 \n7、此款设备兼具对麻醉机内部回路消毒和对呼吸机内部回路、进气端和呼出端消毒的功能。\n8、温度检测：温度控制装置，监控核心部位温度，保证机器低于 55°内部温度运行。 \n9、打印消毒记录：消毒结束后，可打印消毒记录，方便使用方查验，\n10、自动干燥：干燥模式采用恒温进行，确保内回路干燥彻底，无水分残留，保证消毒效果。",190000,190000,"麻醉准备间"]
[50,"手术床","HyBose 8300",1,500000,"6手术间","手术床",1,"1.动力系统采用电动液压方式，可电动调节实现台面升降、头脚倾、左右倾、背板上下折、腿板上下折、解锁锁定。\n2.手术床内部具备传感装置，具有角度分色预警提示功能，在头脚倾角度变化时能通过黄、红颜色进行预警提示，在左右倾角度变化时能通过黄色进行预警提示，提醒医护人员注意病人防护。\n3.手术床具备防撞功能，可以在手术台面调节过程中，在安装不同模块的情况下，都可以精准监测台面运动状态，避免台面与手术床自身和地面发生撞击；同时在无菌单覆盖后，防撞系统也可对腿板运动进行实时监测，与坚硬物体（例如：台车、污物桶等）碰撞后可及时停止运动，避免撞击带来的损坏。\n4.手术床可拆卸模块的安装关节处均采用一键快插式连接结构，即可在不按操作按钮的情况下可将模块快速安装至手术床或者其他模块上，降低医护人员操作难度。\n5.手术床升降距离≥490mm，且最低台面≤600mm,即可适用于神经外科等低体位手术需要，又可适用于骨科等需要拍片等高体位手术需要。\n6.手术床可选配平移功能，可水平双向移动，用于术中透视，移动距离≥340mm ，头端平移距离≥180mm, 腿端平移距离≥150mm。\n7.纵向最大倾斜角度（头倾/脚倾）：≥30°\n8.手术床不小于承载重量：460kg\n9.台面平移距离：≥320mm \n10.侧向最大倾斜角度（左倾/右倾）：≥20°",500000,500000,"6手术间"]
[51,"手术床","HyBose 6100",2,175000,"7手术间、\n8手术间","手术床",2,"1.动力系统采用电动液压方式，可电动调节实现台面升降、头脚倾、左右倾、背板上下折、解锁锁定。\n2.手术床内部具备传感装置，具有角度分色预警提示功能，在头脚倾角度变化时能通过黄、红颜色进行预警提示，在左右倾角度变化时能通过黄色进行预警提示，提醒医护人员注意病人防护。\n3.手术床可拆卸模块的安装关节处均采用一键快插式连接结构，即可在不按操作按钮的情况下可将模块快速安装至手术床或者其他模块上，降低医护人员操作难度。\n4.手术床升降距离≥430mm，最低台面≤600mm, ，可适用于神经外科等低体位手术需要，也可适用于骨科等需要拍片等高体位手术需要。\n5.手术床整体通过油路透析，确保手术床出厂时油路系统洁净，手术床经久耐用。\n6.手术床可选配平移功能，可水平双向移动，用于术中透视，移动距离≥340mm，头端平移距离≥150mm；腿端平移距离≥180mm。\n7.纵向最大倾斜角度（头倾/脚倾）：≥30°\n8.侧向最大倾斜角度（左倾/右倾）：≥20°\n9.手术床不小于承载重量：360kg\n10.台面平移距离：≥320mm",350000,700000,"7手术间、\n8手术间"]
[52,"手术床","HyBose 30",5,110000,"1、2、3、9手术间各1张，分娩镇痛手术室1张","手术床",5,"1.动力系统采用电动液压方式，可电动调节实现台面升降、头脚倾、左右倾、背板上下折、解锁锁定。\n2.手术床内部具备传感装置，具有角度分色预警提示功能，在头脚倾角度变化时能通过黄、红颜色进行预警提示，在左右倾角度变化时能通过黄色进行预警提示，提醒医护人员注意病人防护。\n3.手术床可拆卸模块的安装关节处均采用一键快插式连接结构，即可在不按操作按钮的情况下可将模块快速安装至手术床或者其他模块上，降低医护人员操作难度。\n4.手术床升降距离≥430mm，最低台面≤600mm, ，可适用于神经外科等低体位手术需要，也可适用于骨科等需要拍片等高体位手术需要。\n5.手术床整体通过油路透析，确保手术床出厂时油路系统洁净，手术床经久耐用。\n6.手术床可选配平移功能，可水平双向移动，用于术中透视，移动距离≥340mm，头端平移距离≥150mm；腿端平移距离≥180mm。\n7.纵向最大倾斜角度（头倾/脚倾）：≥30°\n8.侧向最大倾斜角度（左倾/右倾）：≥20°\n9.手术床不小于承载重量：360kg\n10.台面平移距离：≥320mm",350000,1750000,"1、2、3、9手术间各1张，分娩镇痛手术室1张"]
[53,"新生儿辐射保暖台","HKN-93A",1,50000,"1手术间","新生儿辐射保暖台",1,"1.控温方式：预热、手控、肤温三种控制\n2.肤温控温范围：32℃～37.5℃\n3.肤温显示范围：5℃～65℃\n4.控温精度：≤0.5℃\n5.皮肤温度传感器精度：±0.2℃内\n6.床面温度均匀性：≤2℃ \n7.辐射箱水平角度：0°～90°双向转动\n8.婴儿床倾斜角度：三档可调\n9.APGAR评分计时：运行至50″～1′、4′50″～5′、9′50″～10′时发出声光提示\n10.故障报警：断电、传感器、偏差、超温、设置、检查和系统等辐射台使用期限10年",30000,30000,"1手术间"]
[54,"新生儿热辐射台","HKN-93",1,33300,"2手术间","新生儿热辐射台",1,"1.控温方式：预热、手控、肤温三种控制\n2.肤温控温范围：32℃～37.5℃\n3.肤温显示范围：5℃～65℃\n4.控温精度：≤0.5℃\n5.皮肤温度传感器精度：±0.2℃内\n6.床面温度均匀性：≤2℃ \n7.辐射箱水平角度：0°～90°双向转动\n8.婴儿床倾斜角度：三档可调\n9.APGAR评分计时：运行至50″～1′、4′50″～5′、9′50″～10′时发出声光提示\n10.故障报警：断电、传感器、偏差、超温、设置、检查和系统等辐射台使用期限10年",30000,30000,"2手术间"]
[55,"腹腔镜系统","Tmage1Pure HD STORZ",1,2000000,"8手术间","腹腔镜系统",1,"1 主机具备3D,荧光4K超高清图像质量， 系统无需其它模块即可兼容同品牌电子内窥镜。包含电子腹腔镜、电子胸腔镜、3D电子镜、电子鼻窦镜、电子输尿管镜、\n电子膀胱肾盂镜、电子宫腔镜、电子胆道镜等",3000000,3000000,"8手术间"]
[56,"能量平台","Force Triad",1,780000,"麻醉准备间","能量平台",1,"1、可同时连接1把超声刀头、2把单极器械、1把双极器械。具备两个单极接口，具备一个双极接口。\n2、具备器械激发次数统计功能。\n3、具备智慧组织感应技术，≥2000万次/秒侦测组织阻抗，保证切割不同组织始终流畅。",100000,100000,"麻醉准备间"]
[57,"手持式血气分析仪","300G",1,160000,"麻醉恢复室","手持式血气分析仪",1,"1.进样方式：自动吸样进样，支持注射器模式、毛细管模式\n2..*用血量：≤63μL\n3.测试参数：PH、PO2、PCO2、Na＋、K＋、CL-、Ca++、Hct、Lac、Glu \n4..计算参数:cH+，HCO3-act，HCO3-std，BE(ecf)，BE(B)，BB(B)，ctCO2，sO2(est)，Ca++(7.4)，AnGap等,24项\n5.样本类型：≥9种\n6..定标方式：可自动定标及手动启动定标\n7..*检测时间：从开始测量本次样本到给出本次样本血气结果≤4518.操作界面：             8.10.1英寸彩色TFT显示屏,内置操作指导视频                                           9.数据存储：病人样本测试结果 60000个，质控结果2000个，室间质评数据5000个，电子质控数据5000个，定标结果5000个，操作者ID 200组，日志信息20000条，诊断信息20000个，支持U盘导出备份。                                                                            10.拥有≥10项独家专利",130000,130000,"麻醉恢复室"]
[58,"多功能参数仪","ipm10",2,30000,"产科10楼病房","多参数心电监护仪",8,"1.心电参数支持3导联、5导联心率测量范围：一般为20–250次/分\n2.血氧饱和度参数测量范围：0–100%\n3.无创血压参数符合AAMI、ISO标准，一般为±3 mmHg；测量模式：手动、自动、连续监测成人袖带规格\n4.呼吸参数测量方式：呼吸率范围：0–60次/分\n5.体温参数测量范围：一般为32–45℃精度：±0.1℃ 或 ±0.2℃\n6.脉率（PR）参数测量范围：20–250次/分精度：与SpO₂脉搏一致\n7.通讯接口：USB、LAN、Wi-Fi，支持与医院信息系统（HIS）、中央监护系统连接\n电源：交流电源+内置电池（一般续航4小时以上）",50000,{"$f":"J60*H60","v":400000},"产前病区8楼"]
[59,"多参数心电监护仪","MP5",2,30000,"产科10楼病房","多参数心电监护仪"]
[60,"多参数监护仪","G40",2,50000,"产科10楼病房","多参数心电监护仪"]
[61,"病人监护仪","G40E",2,38000,"产科10楼病房","多参数心电监护仪"]
[62,"输液泵","VP7",4,100000,"产前病区8楼","输液泵",8,"1.输液模式：滴速模式（滴/分）、流速模式（ml/h）\n滴速范围：1–1200 滴/分（根据滴斗类型自动识别）累计输液量显示：0–9999 ml\n2.精度与性能输液精度：一般 ±2% 或 ±3%（符合 ISO 80369 与 YY/T 0285）\n阻塞压力报警：高/中/低三档可调\n3.报警功能、气泡报警、阻塞报警、空瓶报警、输液完成报警、门未关报警、低电量报警、流速异常报警、压力超限报警\n4.屏幕：LCD 或 LED，显示流速、滴速、累计量、剩余量操作方式：按键或旋钮",10000,{"$f":"J64*H64","v":80000},"产前病区8楼"]
[63,"输液泵","JSB-1200",4,7400,"产前病区8楼"]
[64,"胎儿监护仪","C21",10,49000,"产前病区8楼","胎儿监护仪",10,"1.可连接 8–16 个床位。\n2.数据采集与显示（实时性）\n监护参数：胎心率（FHR）：范围通常 30–240 bpm。 宫缩压力（TOCO）：范围 0–100 mmHg 或 0–200 mmHg。胎动标记（FM）：支持手动或自动胎动检测。母体参数（可选）：部分系统可接入母体心电、血氧、血压。确保实时反映胎儿状况。\n3.分析与计算功能（核心竞争力）自动分析功能：支持回顾长达 24 小时 或更长时间的历史趋势图。\n4.报警与安全系统（防漏报）支持 热敏打印 或 激光打印。报告内容：包含产妇信息、胎心率曲线、宫缩曲线、自动分析结果、医生签名栏。打印模式：实时打印、回顾打印、事件触发自动打印。",250000,{"$f":"J66*H66","v":2500000},"产前病区8楼"]
[65,"产床","KL-ZE",3,92800,"产前病区8楼","多功能产床\n（产科分娩床）",3,"1.床面材质不锈钢或高强度医用板材，防水、耐腐蚀、易清洁\n床面尺寸：一般长 1900–2100 mm，宽800 mm以上靠背调节角度：0–80°\n腿托调节：可升降、外展，角度 0–90°辅助台面：可折叠的分娩台、扶手、输液架、器械托盘高度调节范围：通常 500–800 mm（方便助产士操作）\n2.承重与稳定性  最大承重：一般 ≥150 kg 或 ≥200 kg\n床体稳固性：防侧翻、防晃动，符合 YY/T 0506 标准\n刹车系统：四轮刹车，操作轻便\n3.分娩功能配置\n体位调节：背部升降、腿部升降、 头低脚高/反分娩体位支持：仰卧、侧卧、半坐、截石位、蹲位辅助等\n4.床垫：防水、防菌、易更换\n5.适用产房",200000,{"$f":"J67*H67","v":600000},"产前病区8楼"]
[66,"高温灭菌器","LDZ-75KBS",1,22500,"药械科\n地下库房","立式压力蒸汽灭菌器",1,"1、容积范围 \n2、温度与压力 、时间设置、功率与电源",20000,{"$f":"J68*H68","v":20000},"检验科消\n毒间Z2027"]
[67,"全自动配血及血型分析仪","Widana compact",1,null,"药械科\n地下库房","全自动配血及血型分析仪",1,"1.可做血型和配血 \n2.反应时间迅速",50000,{"$f":"J69*H69","v":50000},"血库"]
[68,"全自动生化分析仪","C701",1,2750000,"药械科\n地下库房","全自动生化分析仪",1,"1、通量400测试/小时  \n2、+ISE模块  \n3、适用于急诊使用",550000,{"$f":"J70*H70","v":550000},"检验大厅"]
[69,"生物安全柜","Hsafe-1200LCA2",2,66800,"微生物室","生物安全柜",2,"1、分类与防护等级 \n2、气流速度 \n3、过滤效率、柜体密封性",100000,{"$f":"J71*H71","v":200000},"微生物实验室"]
[70,"储血冰箱","HXC-158",2,24500,"血库","储血冰箱",2,"1.温度要求可调控  \n2.温度波动不大  \n3.上下温差小",5000,{"$f":"J72*H72","v":10000},"血库"]
[71,"低温冰箱","DW-401278",1,29500,"血库","低温冰箱",1,"1.温度要求可调控  \n2.温度波动不大  \n3.上下温差小",5000,{"$f":"J73*H73","v":5000},"血库"]
[null,"合计",null,150,{"$nulls":3},150,null,48968000,58803000]

{"sheet":"Sheet2","index":1,"n_rows":0,"n_cols":0,"rows_kept":0}

{"sheet":"Sheet3","index":2,"n_rows":0,"n_cols":0,"rows_kept":0}